[Event "HUN-ch U8-U18 2019"]
[Site "Balatonlelle"]
[Date "2019.06.24"]
[Round "4.18"]
[White "Pogany, Zsombor"]
[Black "Szabo, A. Martin"]
[Result "1-0"]
[ECO "B30"]
[WhiteElo "2121"]
[BlackElo "1946"]
[Annotator "NA"]
[PlyCount "81"]
[EventDate "2019.06.21"]
[EventType "swiss"]
[EventCountry "HUN"]
[SourceTitle "playchess.com"]
[Source "ChessBase"]
[SourceQuality "1"]
[TimeControl "40/5400+30:1800+30"]

1. e4 {[%emt 0:03:08]} c5 {[%emt 0:00:05]} 2. Nf3 {[%emt 0:00:26]} Nc6 {[%emt 0:00:04]} 3. c4 {[%emt 0:00:50]} e5 {[%emt 0:00:12]} 4. Nc3 {[%emt 0:00:25]} d6 {[%emt 0:01:23]} 5. g3 {[%emt 0:01:46]} g6 {[%emt 0:02:38]} 6. Bg2 {[%emt 0:00:41]} Bg7 {[%emt 0:00:09]} 7. d3 {[%emt 0:01:01]} Nge7 {[%emt 0:04:04]} 8. Be3 {[%emt 0:03:02]} O-O {[%emt 0:02:33]} 9. h4 {[%emt 0:05:03]} Bg4 {[%emt 0:06:26]} 10. Qd2 {[%emt 0:03:53]} Bxf3 {[%emt 0:07:28]} 11. Bxf3 {[%emt 0:00:27]} Nd4 {[%emt 0:01:21]} 12. Bxd4 {[%emt 0:01:26]} exd4 {[%emt 0:00:26]} 13. Nd5 {[%emt 0:00:58]} Nxd5 {[%emt 0:00:26]} 14. cxd5 {[%emt 0:01:34]} b5 {[%emt 0:01:14]} 15. O-O {[%emt 0:01:38]} c4 {[%emt 0:02:10]} 16. h5 {[%emt 0:06:22]} Qb6 {[%emt 0:14:27]} 17. hxg6 {[%emt 0:01:46]} hxg6 {[%emt 0:00:31]} 18. Kg2 {[%emt 0:03:46]} a5 {[%emt 0:04:01]} 19. Rh1 {[%emt 0:07:51]} a4 {[%emt 0:02:36]} 20. Rh3 {[%emt 0:13:47]} c3 {[%emt 0:00:43]} 21. Qc2 {[%emt 0:02:36]} b4 {[%emt 0:00:19]} 22. Rah1 {[%emt 0:07:12]} b3 {[%emt 0:04:29]} 23. Qc1 {[%emt 0:00:30]} f6 {[%emt 0:00:23]} 24. Bg4 {[%emt 0:03:04]} f5 {[%emt 0:07:58]} 25. exf5 {[%emt 0:01:23]} Qb7 {[%emt 0:03:53]} 26. fxg6 {[%emt 0:11:34]} Qxd5+ {[%emt 0:00:20]} 27. f3 {[%emt 0:00:44]} Rf6 {[%emt 0:08:39]} 28. Rh5 {[%emt 0:00:58]} Qb7 {[%emt 0:01:14]} 29. Bf5 {[%emt 0:06:58]} Ra5 {[%emt 0:07:52]} 30. g4 {[%emt 0:01:50]} bxa2 {[%emt 0:06:26]} 31. bxc3 {[%emt 0:02:10]} Rfxf5 {[%emt 0:02:18]} 32. Rxf5 {[%emt 0:01:06]} Rxf5 {[%emt 0:00:21]} 33. gxf5 {[%emt 0:00:05]} dxc3 {[%emt 0:00:16]} 34. Qe3 {[%emt 0:01:19]} Qc8 {[%emt 0:02:18]} 35. Qe4 {[%emt 0:00:49]} Kf8 {[%emt 0:05:11]} 36. Qd5 {[%emt 0:01:20]} Qd7 {[%emt 0:00:34]} 37. Re1 {[%emt 0:00:39]} Bf6 {[%emt 0:01:54]} 38. Qxa2 {[%emt 0:00:46]} d5 {[%emt 0:00:24]} 39. Re6 {[%emt 0:00:59]} Kg7 {[%emt 0:00:21]} 40. Qb1 {[%emt 0:00:00]} Qc7 {[%emt 0:00:00]} 41. Qh1 {[%emt 0:06:40]} 1-0

[Event "HUN-ch U8-U18 2019"]
[Site "Balatonlelle"]
[Date "2019.06.24"]
[Round "4.18"]
[White "Tran, David"]
[Black "Bodrogi, Bendeguz"]
[Result "1/2-1/2"]
[ECO "B24"]
[WhiteElo "2078"]
[BlackElo "1925"]
[Annotator "NA"]
[PlyCount "45"]
[EventDate "2019.06.21"]
[EventType "swiss"]
[EventCountry "HUN"]
[SourceTitle "playchess.com"]
[Source "ChessBase"]
[SourceQuality "1"]
[TimeControl "40/5400+30:1800+30"]

1. e4 {[%emt 0:00:03]} c5 {[%emt 0:00:17]} 2. Nc3 {[%emt 0:00:20]} Nc6 {[%emt 0:00:29]} 3. g3 {[%emt 0:00:09]} g6 {[%emt 0:00:35]} 4. Bg2 {[%emt 0:00:52]} Bg7 {[%emt 0:00:46]} 5. d3 {[%emt 0:00:06]} e6 {[%emt 0:01:16]} 6. f4 {[%emt 0:00:25]} Nge7 {[%emt 0:00:30]} 7. Be3 {[%emt 0:00:42]} b6 {[%emt 0:00:51]} 8. Nf3 {[%emt 0:04:23]} d5 {[%emt 0:03:37]} 9. Bf2 {[%emt 0:01:05]} O-O {[%emt 0:07:09]} 10. O-O {[%emt 0:01:34]} Bb7 {[%emt 0:00:55]} 11. e5 {[%emt 0:00:09]} f6 {[%emt 0:11:26]} 12. exf6 {[%emt 0:01:58]} Bxf6 {[%emt 0:02:41]} 13. Re1 {[%emt 0:01:43]} Qd7 {[%emt 0:00:48]} 14. Bh3 {[%emt 0:00:48]} Nf5 {[%emt 0:00:29]} 15. Bxf5 {[%emt 0:03:57]} exf5 {[%emt 0:03:28]} 16. d4 {[%emt 0:00:27]} Rad8 {[%emt 0:07:56]} 17. Ne2 {[%emt 0:04:12]} Rfe8 {[%emt 0:06:02]} 18. c3 {[%emt 0:01:47]} cxd4 {[%emt 0:05:21]} 19. Nexd4 {[%emt 0:00:37]} Re4 {[%emt 0:00:42]} 20. Nxc6 {[%emt 0:00:23]} Qxc6 {[%emt 0:01:38]} 21. Bd4 {[%emt 0:00:26]} Rde8 {[%emt 0:00:32]} 22. Qd2 {[%emt 0:04:04]} R8e7 {[%emt 0:08:34]} 23. Kf2 {[%emt 0:05:48]} 1/2-1/2

[Event "HUN-ch U8-U18 2019"]
[Site "Balatonlelle"]
[Date "2019.06.24"]
[Round "4.19"]
[White "Szegedy, Matyas"]
[Black "Kossela, Peter"]
[Result "1-0"]
[ECO "C47"]
[WhiteElo "1806"]
[BlackElo "1480"]
[Annotator "NA"]
[PlyCount "61"]
[EventDate "2019.06.21"]
[EventType "swiss"]
[EventCountry "HUN"]
[SourceTitle "playchess.com"]
[Source "ChessBase"]
[SourceQuality "1"]
[TimeControl "40/5400+30:1800+30"]

1. e4 {[%emt 0:00:03]} e5 {[%emt 0:00:09]} 2. Nc3 {[%emt 0:00:09]} Nf6 {[%emt 0:00:11]} 3. Nf3 {[%emt 0:00:11]} Nc6 {[%emt 0:00:12]} 4. a3 {[%emt 0:00:12]} d5 {[%emt 0:12:32]} 5. Bb5 {[%emt 0:00:13]} Bg4 {[%emt 0:01:19]} 6. h3 {[%emt 0:15:36]} Bxf3 {[%emt 0:01:38]} 7. Qxf3 {[%emt 0:00:34]} d4 {[%emt 0:03:20]} 8. Ne2 {[%emt 0:05:34]} a6 {[%emt 0:04:21]} 9. Bxc6+ {[%emt 0:01:07]} bxc6 {[%emt 0:00:54]} 10. d3 {[%emt 0:00:15]} Nd7 {[%emt 0:04:16]} 11. Ng3 {[%emt 0:02:05]} Qf6 {[%emt 0:12:41]} 12. Qe2 {[%emt 0:14:24]} Rb8 {[%emt 0:09:18]} 13. O-O {[%emt 0:01:20]} Nc5 {[%emt 0:01:48]} 14. f4 {[%emt 0:02:26]} Qg6 {[%emt 0:03:43]} 15. Qf2 {[%emt 0:03:47]} f6 {[%emt 0:02:31]} 16. fxe5 {[%emt 0:06:07]} fxe5 {[%emt 0:00:19]} 17. Nf5 {[%emt 0:00:39]} Na4 {[%emt 0:01:39]} 18. b3 {[%emt 0:02:17]} Nc5 {[%emt 0:03:35]} 19. Bd2 {[%emt 0:03:54]} Bd6 {[%emt 0:05:55]} 20. Nh4 {[%emt 0:03:44]} Qe6 {[%emt 0:03:26]} 21. Qg3 {[%emt 0:01:11]} g6 {[%emt 0:02:30]} 22. Bg5 {[%emt 0:01:51]} Be7 {[%emt 0:02:16]} 23. Nf3 {[%emt 0:01:50]} Nd7 {[%emt 0:02:12]} 24. Qh4 {[%emt 0:03:08]} h6 {[%emt 0:02:56]} 25. Bxe7 {[%emt 0:03:38]} Qxe7 {[%emt 0:00:07]} 26. Qg4 {[%emt 0:00:19]} g5 {[%emt 0:02:28]} 27. h4 {[%emt 0:03:10]} Nf6 {[%emt 0:01:41]} 28. Qf5 {[%emt 0:00:30]} gxh4 {[%emt 0:02:10]} 29. Nxe5 {[%emt 0:06:36]} Rb5 {[%emt 0:01:41]} 30. Qg6+ {[%emt 0:00:30]} Kf8 {[%emt 0:06:46]} 31. Rxf6+ {[%emt 0:00:13]} 1-0

[Event "HUN-ch U8-U18 2019"]
[Site "Balatonlelle"]
[Date "2019.06.24"]
[Round "4.19"]
[White "Monduk, Ferenc"]
[Black "Hatala, Csaba Laszlo"]
[Result "1/2-1/2"]
[ECO "D43"]
[WhiteElo "1717"]
[BlackElo "1958"]
[Annotator "NA"]
[PlyCount "130"]
[EventDate "2019.06.21"]
[EventType "swiss"]
[EventCountry "HUN"]
[SourceTitle "playchess.com"]
[Source "ChessBase"]
[SourceQuality "1"]
[TimeControl "40/5400+30:1800+30"]

1. d4 {[%emt 0:00:01]} d5 {[%emt 0:00:05]} 2. c4 {[%emt 0:00:04]} e6 {[%emt 0:00:06]} 3. Nc3 {[%emt 0:00:04]} c6 {[%emt 0:00:09]} 4. Nf3 {[%emt 0:00:04]} Nf6 {[%emt 0:00:22]} 5. Bg5 {[%emt 0:00:12]} Be7 {[%emt 0:01:46]} 6. e3 {[%emt 0:00:19]} Nbd7 {[%emt 0:01:11]} 7. cxd5 {[%emt 0:00:44]} exd5 {[%emt 0:00:22]} 8. Bd3 {[%emt 0:00:26]} h6 {[%emt 0:12:49]} 9. Bh4 {[%emt 0:00:17]} Ne4 {[%emt 0:07:29]} 10. Bxe7 {[%emt 0:00:23]} Nxc3 {[%emt 0:01:56]} 11. bxc3 {[%emt 0:01:49]} Qxe7 {[%emt 0:00:05]} 12. O-O {[%emt 0:01:55]} O-O {[%emt 0:02:41]} 13. Rb1 {[%emt 0:02:39]} b6 {[%emt 0:05:34]} 14. Re1 {[%emt 0:08:46]} Qd6 {[%emt 0:14:02]} 15. Qa4 {[%emt 0:11:26]} Bb7 {[%emt 0:05:36]} 16. Qc2 {[%emt 0:04:44]} Rfe8 {[%emt 0:14:45]} 17. a4 {[%emt 0:09:08]} g6 {[%emt 0:05:33]} 18. Rb2 {[%emt 0:14:56]} Kg7 {[%emt 0:02:17]} 19. Ra1 {[%emt 0:03:30]} Re7 {[%emt 0:04:24]} 20. a5 {[%emt 0:01:10]} b5 {[%emt 0:01:33]} 21. c4 {[%emt 0:04:15]} a6 {[%emt 0:01:07]} 22. c5 {[%emt 0:01:23]} Qc7 {[%emt 0:02:24]} 23. Qe2 {[%emt 0:04:16]} Nf6 {[%emt 0:03:13]} 24. Bc2 {[%emt 0:08:41]} Rae8 {[%emt 0:07:14]} 25. Ra3 {[%emt 0:03:37]} Bc8 {[%emt 0:00:27]} 26. Ne5 {[%emt 0:02:28]} Be6 {[%emt 0:01:14]} 27. h3 {[%emt 0:06:19]} Nd7 {[%emt 0:00:36]} 28. Nf3 {[%emt 0:00:32]} Nf8 {[%emt 0:00:31]} 29. Ra1 {[%emt 0:02:11]} Qc8 {[%emt 0:00:26]} 30. Nd2 {[%emt 0:01:45]} Bf5 {[%emt 0:00:18]} 31. Bd1 {[%emt 0:00:20]} Nd7 {[%emt 0:00:24]} 32. Kh2 {[%emt 0:01:16]} Nf6 {[%emt 0:00:22]} 33. Ra3 {[%emt 0:01:06]} Ne4 {[%emt 0:00:49]} 34. Nf3 {[%emt 0:00:25]} Qc7+ {[%emt 0:00:28]} 35. Kg1 {[%emt 0:00:11]} f6 {[%emt 0:01:24]} 36. Nd2 {[%emt 0:01:06]} Nxd2 {[%emt 0:00:15]} 37. Qxd2 {[%emt 0:00:03]} g5 {[%emt 0:00:19]} 38. f4 {[%emt 0:01:14]} Be4 {[%emt 0:01:34]} 39. Qf2 {[%emt 0:00:23]} Rh8 {[%emt 0:00:51]} 40. Bh5 {[%emt 0:00:00]} Bg6 {[%emt 0:00:00]} 41. Be2 {[%emt 0:03:07]} Qd7 {[%emt 0:05:07]} 42. Ra1 {[%emt 0:01:11]} Qe6 {[%emt 0:05:27]} 43. Rb3 {[%emt 0:02:42]} Be4 {[%emt 0:10:20]} 44. Rf1 {[%emt 0:01:20]} f5 {[%emt 0:05:18]} 45. Bh5 {[%emt 0:03:41]} Rg8 {[%emt 0:01:39]} 46. g4 {[%emt 0:03:09]} Kh7 {[%emt 0:00:30]} 47. Kh2 {[%emt 0:00:20]} Reg7 {[%emt 0:01:36]} 48. Rb2 {[%emt 0:00:39]} fxg4 {[%emt 0:01:51]} 49. Bxg4 {[%emt 0:00:12]} Bf5 {[%emt 0:01:11]} 50. Bxf5+ {[%emt 0:02:46]} Qxf5 {[%emt 0:00:09]} 51. fxg5 {[%emt 0:00:03]} Qxf2+ {[%emt 0:01:55]} 52. Rfxf2 {[%emt 0:01:33]} Rxg5 {[%emt 0:00:44]} 53. Rf6 {[%emt 0:00:49]} R5g6 {[%emt 0:00:21]} 54. Rf7+ {[%emt 0:01:37]} R6g7 {[%emt 0:00:14]} 55. Rf6 {[%emt 0:00:08]} Rc7 {[%emt 0:00:19]} 56. Rd6 {[%emt 0:01:50]} Rg6 {[%emt 0:00:53]} 57. Rd8 {[%emt 0:00:01]} Ra7 {[%emt 0:00:39]} 58. Rb8 {[%emt 0:00:21]} Re6 {[%emt 0:01:08]} 59. Re2 {[%emt 0:00:53]} Ree7 {[%emt 0:00:43]} 60. Rb6 {[%emt 0:00:08]} Re6 {[%emt 0:00:18]} 61. Kg3 {[%emt 0:00:51]} Kg6 {[%emt 0:00:14]} 62. Rg2 {[%emt 0:02:12]} Kf6 {[%emt 0:00:23]} 63. Kf4 {[%emt 0:00:19]} Re4+ {[%emt 0:00:29]} 64. Kf3 {[%emt 0:00:13]} Re6 {[%emt 0:00:12]} 65. Kf4 {[%emt 0:00:09]} Ra8 1/2-1/2

[Event "HUN-ch U8-U18 2019"]
[Site "Balatonlelle"]
[Date "2019.06.24"]
[Round "4.20"]
[White "Kovacs, Gabor Etele"]
[Black "Varga, Marcell"]
[Result "1-0"]
[ECO "C43"]
[WhiteElo "2062"]
[BlackElo "2106"]
[Annotator "NA"]
[PlyCount "65"]
[EventDate "2019.06.21"]
[EventType "swiss"]
[EventCountry "HUN"]
[SourceTitle "playchess.com"]
[Source "ChessBase"]
[SourceQuality "1"]
[TimeControl "40/5400+30:1800+30"]

1. e4 {[%emt 0:00:03]} e5 {[%emt 0:00:21]} 2. Nf3 {[%emt 0:00:06]} Nf6 {[%emt 0:00:57]} 3. d4 {[%emt 0:00:37]} Nxe4 {[%emt 0:02:28]} 4. dxe5 {[%emt 0:00:15]} d5 {[%emt 0:00:45]} 5. Nbd2 {[%emt 0:00:22]} Nxd2 {[%emt 0:08:10]} 6. Qxd2 {[%emt 0:05:37]} Be7 {[%emt 0:00:49]} 7. Be2 {[%emt 0:06:03]} O-O {[%emt 0:03:18]} 8. b3 {[%emt 0:04:32]} c5 {[%emt 0:09:54]} 9. Bb2 {[%emt 0:00:19]} Nc6 {[%emt 0:00:20]} 10. O-O {[%emt 0:02:51]} Be6 {[%emt 0:04:30]} 11. Rfe1 {[%emt 0:01:38]} Re8 {[%emt 0:03:47]} 12. a3 {[%emt 0:10:07]} h6 {[%emt 0:03:06]} 13. Rad1 {[%emt 0:02:50]} Qc7 {[%emt 0:02:41]} 14. Qf4 {[%emt 0:07:01]} Rad8 {[%emt 0:04:33]} 15. Bd3 {[%emt 0:01:49]} Bf8 {[%emt 0:05:35]} 16. Bc1 {[%emt 0:03:36]} Qe7 {[%emt 0:04:27]} 17. Qg3 {[%emt 0:04:43]} g6 {[%emt 0:06:00]} 18. Nh4 {[%emt 0:04:07]} Kh8 {[%emt 0:03:15]} 19. Bxg6 {[%emt 0:03:44]} Bg7 {[%emt 0:01:13]} 20. f4 {[%emt 0:00:54]} Qxh4 {[%emt 0:03:55]} 21. Qxh4 {[%emt 0:01:04]} fxg6 {[%emt 0:00:06]} 22. g4 {[%emt 0:09:34]} Nd4 {[%emt 0:00:38]} 23. Rd3 {[%emt 0:00:20]} Nxc2 {[%emt 0:01:10]} 24. Rf1 {[%emt 0:00:24]} Nd4 {[%emt 0:00:23]} 25. Rxd4 {[%emt 0:01:24]} cxd4 {[%emt 0:00:35]} 26. f5 {[%emt 0:00:02]} gxf5 {[%emt 0:05:18]} 27. Bxh6 {[%emt 0:01:09]} Rd7 {[%emt 0:02:44]} 28. Bxg7+ {[%emt 0:01:16]} Kxg7 {[%emt 0:00:09]} 29. gxf5 {[%emt 0:00:04]} Rf7 {[%emt 0:00:48]} 30. Qg4+ {[%emt 0:02:31]} Kf8 {[%emt 0:00:19]} 31. fxe6 {[%emt 0:00:11]} Rxf1+ {[%emt 0:00:14]} 32. Kxf1 {[%emt 0:00:01]} Re7 {[%emt 0:00:15]} 33. h4 {[%emt 0:00:35]} 1-0

[Event "HUN-ch U8-U18 2019"]
[Site "Balatonlelle"]
[Date "2019.06.24"]
[Round "4.20"]
[White "Szikszai, Bertalan"]
[Black "Gulacsi, Donat Ferenc"]
[Result "1-0"]
[ECO "B15"]
[WhiteElo "1896"]
[BlackElo "1638"]
[Annotator "NA"]
[PlyCount "154"]
[EventDate "2019.06.21"]
[EventType "swiss"]
[EventCountry "HUN"]
[SourceTitle "playchess.com"]
[Source "ChessBase"]
[SourceQuality "1"]
[TimeControl "40/5400+30:1800+30"]

1. e4 {[%emt 0:00:03]} c6 {[%emt 0:00:09]} 2. d4 {[%emt 0:00:04]} d5 {[%emt 0:00:05]} 3. Nc3 {[%emt 0:00:04]} dxe4 {[%emt 0:00:12]} 4. Nxe4 {[%emt 0:00:05]} Nf6 {[%emt 0:00:07]} 5. Ng3 {[%emt 0:00:06]} e5 {[%emt 0:00:32]} 6. Be3 {[%emt 0:15:19]} exd4 {[%emt 0:01:57]} 7. Bxd4 {[%emt 0:00:43]} Be7 {[%emt 0:00:18]} 8. Nf3 {[%emt 0:00:45]} O-O {[%emt 0:00:19]} 9. Be2 {[%emt 0:00:16]} Be6 {[%emt 0:02:58]} 10. O-O {[%emt 0:03:34]} Nd5 {[%emt 0:05:50]} 11. Qd2 {[%emt 0:03:47]} Nd7 {[%emt 0:00:26]} 12. c4 {[%emt 0:03:02]} N5b6 {[%emt 0:02:45]} 13. b3 {[%emt 0:03:30]} Bf6 {[%emt 0:02:22]} 14. Rad1 {[%emt 0:01:59]} Qc7 {[%emt 0:05:49]} 15. Rfe1 {[%emt 0:03:36]} Rad8 {[%emt 0:04:33]} 16. Qc2 {[%emt 0:05:02]} Ne5 {[%emt 0:04:09]} 17. Nxe5 {[%emt 0:03:19]} Bxe5 {[%emt 0:00:10]} 18. Bxe5 {[%emt 0:00:23]} Qxe5 {[%emt 0:03:01]} 19. Bd3 {[%emt 0:00:42]} Qa5 {[%emt 0:01:39]} 20. Bxh7+ {[%emt 0:01:02]} Kh8 {[%emt 0:00:04]} 21. Be4 {[%emt 0:05:04]} Nd7 {[%emt 0:01:51]} 22. Bd3 {[%emt 0:16:41]} Rfe8 {[%emt 0:07:18]} 23. Ne4 {[%emt 0:07:03]} Bf5 {[%emt 0:03:13]} 24. Qe2 {[%emt 0:07:45]} Nf6 {[%emt 0:04:19]} 25. f3 {[%emt 0:03:43]} Nxe4 {[%emt 0:03:59]} 26. Bxe4 {[%emt 0:02:41]} Bxe4 {[%emt 0:01:30]} 27. Rxd8 {[%emt 0:01:57]} Rxd8 {[%emt 0:00:10]} 28. Qxe4 {[%emt 0:00:28]} Qd2 {[%emt 0:02:06]} 29. Re2 {[%emt 0:01:58]} Qd6 {[%emt 0:02:00]} 30. Qe3 {[%emt 0:01:46]} a5 {[%emt 0:01:16]} 31. Qe5 {[%emt 0:00:53]} f6 {[%emt 0:06:31]} 32. Qh5+ {[%emt 0:03:13]} Kg8 {[%emt 0:00:08]} 33. Re8+ {[%emt 0:02:27]} Rxe8 {[%emt 0:00:14]} 34. Qxe8+ {[%emt 0:00:03]} Kh7 {[%emt 0:00:43]} 35. Qe3 {[%emt 0:00:47]} a4 {[%emt 0:04:06]} 36. Qe4+ {[%emt 0:02:40]} Kg8 {[%emt 0:01:44]} 37. Qc2 {[%emt 0:00:29]} a3 {[%emt 0:01:22]} 38. Qe2 {[%emt 0:01:10]} Kf7 {[%emt 0:03:28]} 39. g3 {[%emt 0:00:39]} Qd4+ {[%emt 0:00:42]} 40. Kf1 {[%emt 0:00:00]} Qa1+ {[%emt 0:00:00]} 41. Kg2 {[%emt 0:05:49]} Qb2 {[%emt 0:01:42]} 42. Qf2 {[%emt 0:00:10]} Kf8 {[%emt 0:01:05]} 43. f4 {[%emt 0:01:23]} Ke7 {[%emt 0:04:21]} 44. Kf3 {[%emt 0:00:18]} Kd6 {[%emt 0:07:27]} 45. Qe2 {[%emt 0:01:25]} Kc5 {[%emt 0:01:05]} 46. Qe7+ {[%emt 0:03:32]} Kb6 {[%emt 0:00:33]} 47. Qe3+ {[%emt 0:01:06]} Ka5 {[%emt 0:01:31]} 48. Qc5+ {[%emt 0:04:30]} Ka6 {[%emt 0:01:43]} 49. b4 {[%emt 0:00:19]} b6 {[%emt 0:02:16]} 50. Qxc6 {[%emt 0:00:20]} Ka7 {[%emt 0:00:09]} 51. Qc7+ {[%emt 0:01:07]} Ka8 {[%emt 0:01:03]} 52. c5 {[%emt 0:03:11]} bxc5 {[%emt 0:01:58]} 53. Qc8+ {[%emt 0:00:20]} Ka7 {[%emt 0:00:05]} 54. Qxc5+ {[%emt 0:00:06]} Kb7 {[%emt 0:01:22]} 55. b5 {[%emt 0:03:13]} Qxa2 {[%emt 0:00:56]} 56. Qc6+ {[%emt 0:00:05]} Kb8 {[%emt 0:00:05]} 57. b6 {[%emt 0:00:28]} Qf7 {[%emt 0:00:23]} 58. Qd6+ {[%emt 0:00:27]} Kb7 {[%emt 0:00:22]} 59. Qxa3 {[%emt 0:00:16]} Kxb6 {[%emt 0:00:08]} 60. Qb4+ {[%emt 0:00:15]} Kc6 {[%emt 0:01:39]} 61. Qe4+ {[%emt 0:02:15]} Kc5 {[%emt 0:02:23]} 62. g4 {[%emt 0:00:34]} Kd6 {[%emt 0:08:30]} 63. Qd3+ {[%emt 0:01:56]} Kc5 {[%emt 0:03:19]} 64. h4 {[%emt 0:01:08]} Kc6 {[%emt 0:02:48]} 65. f5 {[%emt 0:01:12]} Kc5 {[%emt 0:02:51]} 66. Qc3+ {[%emt 0:00:16]} Kd6 {[%emt 0:00:48]} 67. Kf4 {[%emt 0:00:39]} Qg8 {[%emt 0:01:52]} 68. g5 {[%emt 0:01:00]} fxg5+ 69. hxg5 {[%emt 0:00:28]} Kd7 {[%emt 0:10:28]} 70. Qc5 {[%emt 0:00:49]} Qb8+ {[%emt 0:01:20]} 71. Kg4 {[%emt 0:00:28]} Qg8 {[%emt 0:00:33]} 72. Qe5 {[%emt 0:01:24]} Qc4+ {[%emt 0:02:30]} 73. Kh5 {[%emt 0:00:10]} Qf7+ {[%emt 0:00:05]} 74. g6 {[%emt 0:00:13]} Qf8 {[%emt 0:02:16]} 75. Qe6+ {[%emt 0:00:17]} Kd8 {[%emt 0:01:29]} 76. Qb6+ {[%emt 0:01:12]} Kd7 {[%emt 0:00:14]} 77. Qb7+ {[%emt 0:00:14]} Ke8 1-0

[Event "HUN-ch U8-U18 2019"]
[Site "Balatonlelle"]
[Date "2019.06.24"]
[Round "4.21"]
[White "Kolimar, Kristof Pal"]
[Black "Makay, Mark Janos"]
[Result "1/2-1/2"]
[ECO "A06"]
[WhiteElo "1979"]
[BlackElo "1354"]
[Annotator "NA"]
[PlyCount "110"]
[EventDate "2019.06.21"]
[EventType "swiss"]
[EventCountry "HUN"]
[SourceTitle "playchess.com"]
[Source "ChessBase"]
[SourceQuality "1"]
[TimeControl "40/5400+30:1800+30"]

1. Nf3 {[%emt 0:00:03]} d5 {[%emt 0:00:28]} 2. c4 {[%emt 0:00:36]} c6 {[%emt 0:00:55]} 3. d4 {[%emt 0:00:49]} g6 {[%emt 0:00:58]} 4. Qc2 {[%emt 0:01:51]} Nf6 {[%emt 0:01:30]} 5. Bf4 {[%emt 0:01:16]} Bg7 {[%emt 0:01:33]} 6. e3 {[%emt 0:01:29]} Bf5 {[%emt 0:01:34]} 7. Bd3 {[%emt 0:05:18]} Bxd3 {[%emt 0:03:38]} 8. Qxd3 {[%emt 0:00:04]} dxc4 {[%emt 0:01:07]} 9. Qxc4 {[%emt 0:01:17]} Nbd7 {[%emt 0:01:29]} 10. O-O {[%emt 0:03:42]} O-O {[%emt 0:04:40]} 11. Nbd2 {[%emt 0:03:41]} Nh5 {[%emt 0:03:39]} 12. Bg5 {[%emt 0:08:00]} h6 {[%emt 0:04:17]} 13. Bh4 {[%emt 0:00:24]} g5 {[%emt 0:02:30]} 14. Bg3 {[%emt 0:05:53]} Nxg3 {[%emt 0:05:38]} 15. hxg3 {[%emt 0:00:53]} e5 {[%emt 0:02:57]} 16. dxe5 {[%emt 0:12:43]} Nxe5 {[%emt 0:04:33]} 17. Qc2 {[%emt 0:03:59]} Qd3 {[%emt 0:11:19]} 18. Rac1 {[%emt 0:09:47]} Rad8 {[%emt 0:05:29]} 19. Nxe5 {[%emt 0:03:20]} Bxe5 {[%emt 0:03:45]} 20. Nc4 {[%emt 0:00:40]} Bc7 {[%emt 0:00:14]} 21. a4 {[%emt 0:06:41]} a5 {[%emt 0:03:54]} 22. Qxd3 {[%emt 0:07:11]} Rxd3 {[%emt 0:00:25]} 23. Rfd1 {[%emt 0:00:17]} Rfd8 {[%emt 0:00:11]} 24. Rxd3 {[%emt 0:00:12]} Rxd3 {[%emt 0:00:06]} 25. Kf1 {[%emt 0:05:43]} f5 {[%emt 0:03:28]} 26. Ke2 {[%emt 0:00:18]} Rd5 {[%emt 0:01:06]} 27. Rc2 {[%emt 0:02:00]} Kf7 {[%emt 0:01:34]} 28. Nd2 {[%emt 0:01:11]} Ke6 {[%emt 0:02:09]} 29. Rc1 {[%emt 0:01:21]} Be5 {[%emt 0:02:39]} 30. b3 {[%emt 0:00:31]} f4 {[%emt 0:01:57]} 31. gxf4 {[%emt 0:00:36]} gxf4 {[%emt 0:00:06]} 32. e4 {[%emt 0:00:04]} Rd4 {[%emt 0:01:50]} 33. Rc5 {[%emt 0:01:57]} Bd6 {[%emt 0:01:16]} 34. Rc2 {[%emt 0:01:38]} Bb4 {[%emt 0:02:00]} 35. f3 {[%emt 0:00:04]} Bxd2 {[%emt 0:01:10]} 36. Rxd2 {[%emt 0:00:05]} Rb4 {[%emt 0:00:10]} 37. Rd3 {[%emt 0:00:07]} c5 {[%emt 0:00:23]} 38. Rc3 {[%emt 0:05:30]} b6 {[%emt 0:00:54]} 39. Kd2 {[%emt 0:00:03]} Rd4+ {[%emt 0:00:29]} 40. Kc2 {[%emt 0:00:00]} Rd8 {[%emt 0:00:00]} 41. Rd3 {[%emt 0:01:15]} Rg8 {[%emt 0:01:43]} 42. Rd2 {[%emt 0:00:04]} h5 {[%emt 0:00:09]} 43. Kc3 {[%emt 0:00:21]} h4 {[%emt 0:01:51]} 44. Kc4 {[%emt 0:00:06]} Rg6 {[%emt 0:00:04]} 45. Kb5 {[%emt 0:00:53]} Ke7 {[%emt 0:00:15]} 46. Ka6 {[%emt 0:00:41]} Ke8 {[%emt 0:01:28]} 47. Kb7 {[%emt 0:00:30]} Ke7 {[%emt 0:01:02]} 48. Kc7 {[%emt 0:00:05]} Ke8 {[%emt 0:00:07]} 49. Rd8+ {[%emt 0:00:16]} Ke7 {[%emt 0:00:05]} 50. Rh8 {[%emt 0:00:32]} Rxg2 {[%emt 0:00:29]} 51. Rxh4 {[%emt 0:00:04]} Rb2 {[%emt 0:00:10]} 52. Kxb6 {[%emt 0:00:19]} Rxb3+ {[%emt 0:00:05]} 53. Kxc5 {[%emt 0:00:14]} Rxf3 {[%emt 0:00:06]} 54. Kb5 {[%emt 0:00:40]} Rf1 {[%emt 0:00:32]} 55. Kxa5 {[%emt 0:00:04]} f3 {[%emt 0:00:05]} 1/2-1/2

[Event "HUN-ch U8-U18 2019"]
[Site "Balatonlelle"]
[Date "2019.06.24"]
[Round "4.21"]
[White "Szabo, Andrea Erzsebet"]
[Black "Kovacs, Judit"]
[Result "0-1"]
[ECO "A48"]
[WhiteElo "1582"]
[BlackElo "2025"]
[Annotator "NA"]
[PlyCount "52"]
[EventDate "2019.06.21"]
[EventType "swiss"]
[EventCountry "HUN"]
[SourceTitle "playchess.com"]
[Source "ChessBase"]
[SourceQuality "1"]
[TimeControl "40/5400+30:1800+30"]

1. d4 {[%emt 0:00:02]} Nf6 {[%emt 0:00:17]} 2. Nf3 {[%emt 0:00:07]} g6 {[%emt 0:00:05]} 3. c3 {[%emt 0:01:16]} Bg7 {[%emt 0:00:13]} 4. Bf4 {[%emt 0:00:25]} O-O {[%emt 0:01:18]} 5. Nbd2 {[%emt 0:01:18]} d5 {[%emt 0:00:08]} 6. e3 {[%emt 0:00:36]} c5 {[%emt 0:01:34]} 7. Be2 {[%emt 0:02:18]} b6 {[%emt 0:01:35]} 8. h3 {[%emt 0:06:51]} Nc6 {[%emt 0:00:52]} 9. O-O {[%emt 0:03:49]} Nd7 {[%emt 0:14:22]} 10. Bb5 {[%emt 0:05:18]} Bb7 {[%emt 0:00:19]} 11. Bxc6 {[%emt 0:16:58]} Bxc6 {[%emt 0:00:06]} 12. Re1 {[%emt 0:01:44]} Nf6 {[%emt 0:04:51]} 13. Ne5 {[%emt 0:02:31]} Bb7 {[%emt 0:00:16]} 14. Ng4 {[%emt 0:06:30]} Ne8 {[%emt 0:14:11]} 15. Bh6 {[%emt 0:08:34]} f6 {[%emt 0:01:11]} 16. Bxg7 {[%emt 0:00:59]} Kxg7 {[%emt 0:00:11]} 17. Nf3 {[%emt 0:08:35]} Nd6 {[%emt 0:01:16]} 18. Qc2 {[%emt 0:03:24]} Qc7 {[%emt 0:04:26]} 19. Rad1 {[%emt 0:03:53]} Rae8 {[%emt 0:03:51]} 20. Qc1 {[%emt 0:04:18]} Nf7 {[%emt 0:02:16]} 21. b4 {[%emt 0:02:38]} c4 {[%emt 0:06:42]} 22. a3 {[%emt 0:05:15]} Qc6 {[%emt 0:04:38]} 23. Qc2 {[%emt 0:00:32]} Bc8 {[%emt 0:00:37]} 24. e4 {[%emt 0:01:53]} dxe4 {[%emt 0:01:05]} 25. Qxe4 {[%emt 0:01:13]} Qxe4 {[%emt 0:00:25]} 26. Rxe4 {[%emt 0:00:05]} f5 {[%emt 0:00:05]} 0-1